Cogmind - Beta 16.1 @@@ ROGUE MODE // 2026.04.04 @ 21:47:28 Player: WarMechanic Result: Smashed by cave-in Performance ------------- Evolutions (1) 500 Regions Visited (5) 1000 Robots Destroyed (75) 375 Value Destroyed (1508) 1508 Prototype IDs (2) 40 Alien Tech Used (0) 0 Bonus (300) 300 TOTAL SCORE: 3723 Bonus ------- Aligned with FarCom 300 Cogmind --------- Core Integrity 0/400 Matter 228/300 Energy 265/265 System Corruption 16% Temperature Cool (67) Movement Core (3600) Ox71 Location -8/Mines Parts ------- > --- POWER (1) -------- Reinforced Ion Engine > --- PROPULSION (2) --- Light Treads (fused) > --- UTILITY (4) ------ Humpback Trap Reconfigurator > --- WEAPON (2) ------- EM Shotgun Flail > --- INVENTORY (35) --- Ion Engine Improved Ion Engine Light Treads Light Treads Light Treads Armored Wheel Armored Wheel Improved Heat Sink Humpback Structural Scanner Structural Scanner Improved Terrain Scanner Salvage Targeting Computer ECM Suite Light Armor Plating Hardened Light Armor Plating Hacking Suite EM Shotgun EM Shotgun EM Shotgun EM Shotgun EM Shotgun Advanced EMP Blaster Advanced EMP Blaster Advanced EMP Blaster Advanced EMP Blaster Datajack Hammer Peak State ------------ > --- POWER ------------ Reinforced Ion Engine > --- PROPULSION ------- Light Treads Compact Wheel > --- UTILITY ---------- Heat Sink Humpback Trap Reconfigurator > --- WEAPON ----------- EM Shotgun Flail > --- INVENTORY -------- Ion Engine Improved Ion Engine Light Treads Light Treads Light Treads Armored Wheel Armored Wheel Improved Heat Sink Humpback Structural Scanner Structural Scanner Improved Terrain Scanner Salvage Targeting Computer ECM Suite Light Armor Plating Hardened Light Armor Plating Hacking Suite EM Shotgun EM Shotgun EM Shotgun EM Shotgun EM Shotgun Advanced EMP Blaster Advanced EMP Blaster Advanced EMP Blaster Advanced EMP Blaster Datajack Hammer [Rating: 25] Favorites ----------- Power Reinforced Ion Engine Engine Reinforced Ion Engine Power Core Light Nuclear Core Propulsion Light Treads Treads Light Treads Wheel Compact Wheel Utility Small Storage Unit Device Heat Sink Storage Small Storage Unit Protection Propulsion Shielding Weapon Hammer Energy Gun EM Shotgun Ballistic Gun Light Assault Rifle Launcher Grenade Launcher Impact Weapon Hammer Special Melee Weapon Datajack Build | -11 -10 -9 -9 -9 -8 ------- Run | Yrd Mat Mat Min Exi Min Slots Evolved 2 | . . 2 . . . Power . | . . . . . . Propulsion . | . . . . . . Utility 2 | . . 2 . . . Weapon . | . . . . . . Parts Attached 52 | 7 4 34 4 2 1 Power 5 | 1 . 4 . . . Engine 4 | 1 . 3 . . . Core 1 | . . 1 . . . Reactor . | . . . . . . Propulsion 13 | 2 2 8 1 . . Treads 7 | 1 1 4 1 . . Leg . | . . . . . . Wheel 6 | 1 1 4 . . . Hover . | . . . . . . Flight . | . . . . . . Utility 18 | 2 . 13 1 2 . Device 7 | 1 . 4 1 1 . Storage 5 | 1 . 3 . 1 . Processor . | . . . . . . Hackware . | . . . . . . Protection 6 | . . 6 . . . Artifact . | . . . . . . Weapon 16 | 2 2 9 2 . 1 Energy Gun 5 | 1 1 1 1 . 1 Energy Cannon . | . . . . . . Ballistic Gun 4 | 1 . 3 . . . Ballistic Cannon . | . . . . . . Launcher 3 | . 1 2 . . . Special Weapon . | . . . . . . Impact Weapon 3 | . . 2 1 . . Slashing Weapon . | . . . . . . Piercing Weapon . | . . . . . . Special Melee Weapon 1 | . . 1 . . . Unidentified Prototypes 2 | . . 1 . 1 . Corrupted Parts 1 | . . 1 . . . System Corruption 5 | . . 5 . . . Parts Lost 19 | . 1 16 . . 2 Power 3 | . . 3 . . . Propulsion 3 | . . 2 . . 1 Utility 8 | . . 7 . . 1 Weapon 5 | . 1 4 . . . Highest Loss Streak 5 | . 1 5 . . 2 To Critical Strikes 1 | . . 1 . . . Average Backups 14 | 3 7 9 24 26 28 Power 1 | . 1 . 2 1 2 Propulsion 3 | 2 2 2 5 4 5 Utility 4 | . 2 3 5 7 9 Weapon 5 | . 1 2 10 12 10 Tool/Special . | . . . . . . Unused Backups 26 | . 4 3 . 1 18 Power 3 | . 1 . . . 2 Propulsion 6 | . 2 1 . . 3 Utility 8 | . . 1 . . 7 Weapon 9 | . 1 1 . 1 6 Tool/Special . | . . . . . . Average Slot Usage (%) 81 | . 100 82 88 66 84 Engine 9 | . 14 7 11 11 11 Core 1 | . . 3 . . . Treads 11 | . 14 11 11 11 11 Wheel 11 | . 14 10 11 11 11 Device 13 | . 14 9 16 22 22 Storage 11 | . 14 11 11 11 11 Protection 5 | . . 8 5 . . Energy Gun 5 | . 13 4 9 . 9 Ballistic Gun 3 | . 14 3 . . . Impact Weapon 7 | . . 10 11 . 9 Peak Build Rating 25 | 8 8 19 19 22 25 Average Rating 13 | 6 7 11 18 18 24 On Entrance 12 | . 8 8 19 19 22 Avg Prop Armor Cover (%) 10 | 10 3 9 10 16 13 Naked Turns . | . . . . . . Heaviest Build 217 | 14 14 164 164 212 217 Greatest Support 40 | 20 20 40 16 16 16 Greatest Overweight (x) 13 | . . 13 13 13 13 Average Overweight (x) 4 | . . 2 9 9 13 Largest Inventory Capacity 35 | 8 8 30 30 35 35 Average Capacity 17 | 7 8 11 30 31 35 Most Carried 31 | 8 8 23 26 30 31 Average Carried 14 | 3 7 9 24 26 29 Final Capacity 35 | 8 8 30 30 35 35 Final Carried 30 | 8 8 23 26 30 29 Class Distribution -------------------- 41% | Hauler-Mutant 40% | Mutant 18% | Scavenger-Mutant Dominant Class ---------------- Mutant | -10/Materials Mutant | -9/Materials Hauler-Mutant | -9/Mines Hauler-Mutant | -9/Exiles Hauler-Mutant | -8/Mines Resources | -11 -10 -9 -9 -9 -8 ----------- Run | Yrd Mat Mat Min Exi Min Matter Collected 1110 | 314 141 568 87 . . Remotely . | . . . . . . Salvage Created 2397 | 193 440 1680 64 . 20 Parts 120 | 22 22 71 5 . . Haulers Intercepted 3 | . . 3 . . . Recyclers Shooed 2 | . 1 1 . . . Parts Field Recycled . | . . . . . . Retrieved Matter . | . . . . . . Parts Self-Destructed . | . . . . . . Prevented . | . . . . . . Parts Restored . | . . . . . . Kills | -11 -10 -9 -9 -9 -8 ------- Run | Yrd Mat Mat Min Exi Min Combat Hostiles Destroyed 47 | . 6 34 7 . . Melee 9 | . . 8 1 . . Guns 18 | . 4 11 3 . . AOE 8 | . 2 3 3 . . Classes Destroyed 13 | 3 2 7 1 . . Worker 4 | 2 . 2 . . . Builder 3 | . . 2 . . 1 Tunneler 8 | 5 . 3 . . . Hauler 3 | . . 3 . . . Recycler 7 | 1 3 3 . . . Mechanic 1 | . . 1 . . . Operator 4 | . 2 2 . . . Watcher 2 | . . 2 . . . Swarmer 16 | . . 13 3 . . Grunt 17 | . 6 11 . . . Brawler 2 | . . 2 . . . Sentry 8 | . . 8 . . . Assembled 4 | . . . 4 . . Best Kill Streak 6 | 2 4 6 3 . 1 Combat Bots Only 5 | . 2 5 3 . . Max Kills in Single Turn 3 | 1 1 2 3 . 1 Gunslinging . | . . . . . . Exploded 3 | . 1 2 3 . . Melee 1 | . . 1 1 . . Uniques/NPCs Destroyed . | . . . . . . Combat | -11 -10 -9 -9 -9 -8 -------- Run | Yrd Mat Mat Min Exi Min Hostile Shots Fired 275 | . 33 234 8 . . Missed 68 | . 12 53 3 . . Hits 207 | . 21 181 5 . . Melee 4 | . . 2 2 . . Projectile 203 | . 21 179 3 . . Critical Strikes 5 | . . 5 . . . Damage Taken 2820 | . 291 2243 109 . 177 Core 496 | . 53 372 11 . 60 Absorbed by Shields . | . . . . . . Redirected to Shielding 101 | . . 101 . . . Regen/Repaired (Parts) 194 | . . 194 . . . Core Remaining (%) 89 | 100 78 . . . . Volleys Fired 175 | 44 43 76 12 . . Largest 2 | 2 2 1 1 . . Hottest 60 | 60 60 45 45 . . Shots Fired 203 | 46 67 76 13 . 1 Gun 193 | 46 60 74 12 . 1 Cannon . | . . . . . . Launcher 10 | . 7 2 1 . . Special . | . . . . . . Kinetic 120 | 44 36 40 . . . Thermal 38 | . 13 25 . . . Explosive 9 | . 7 2 . . . Electromagnetic 36 | 2 11 9 13 . 1 Robot Hit Streak 11 | 9 11 9 6 . . Robot Miss Streak 4 | 3 4 3 3 . . Penetration Max . | . . . . . . Secondary Targets . | . . . . . . Shots Hit Robots 207 | 31 41 126 8 . 1 Core Hits 96 | 15 26 44 11 . . Critical Kills 3 | . . 3 . . . Critical Parts Destroyed 10 | . . 10 . . . Critical Strikes 14 | . . 14 . . . Smash 14 | . . 14 . . . Melee Attacks 114 | . . 104 8 . 2 Impact 110 | . . 100 8 . 2 Slashing . | . . . . . . Piercing . | . . . . . . Sneak Attacks 15 | . . 14 . . 1 Combat Hostiles . | . . . . . . Follow-up Attacks . | . . . . . . Damage Inflicted 4726 | 270 684 3388 312 . 72 Guns 1440 | 270 377 701 92 . . Cannons . | . . . . . . Explosions 667 | . 307 163 197 . . Melee 2619 | . . 2524 23 . 72 Ramming . | . . . . . . Kinetic 797 | 242 197 358 . . . Thermal 502 | . 88 238 176 . . Explosive 470 | . 307 163 . . . Electromagnetic 338 | 28 92 105 113 . . Impact 2619 | . . 2524 23 . 72 Slashing . | . . . . . . Piercing . | . . . . . . Highest Corruption 9 | . . 9 9 9 9 Average Corruption 7 | . . 4 9 9 9 Corruption Purged . | . . . . . . Corruption Blocked . | . . . . . . Effects 101 | . . 35 33 27 6 Message Errors 23 | . . 8 9 5 1 Matter Fused 17 | . . 8 4 5 . Heat Flow Errors 15 | . . 2 2 10 1 Energy Discharges 12 | . . 5 3 1 3 Parts Fused 1 | . . . . 1 . Data Loss (minor) 20 | . . 7 10 3 . Data Loss (major) 4 | . . 3 . 1 . Misfires 4 | . . . 3 . 1 Alerts 3 | . . 2 . 1 . Weapon Failures 2 | . . . 2 . . Overload Shots . | . . . . . . Overflow Damage 696 | . . 577 67 . 52 Projectiles . | . . . . . . Explosions 67 | . . . 67 . . Melee 629 | . . 577 . . 52 Knockbacks 9 | . . 8 . . 1 Impact 9 | . . 8 . . 1 Kinetic . | . . . . . . Secondary . | . . . . . . Self-Inflicted Damage 28 | . 17 . 11 . . Shots 2 | . 1 . 1 . . Rammed . | . . . . . . Targets Rammed . | . . . . . . Kicked . | . . . . . . Crushed . | . . . . . . Highest Temperature 261 | 20 70 227 213 261 84 Average Temperature 56 | 15 27 30 89 115 40 Received Heat Transfer 915 | . 150 765 . . . Effects 2 | . . . . 2 . Interference 2 | . . . . 2 . Siege Activations . | . . . . . . Martial Activations . | . . . . . . Shielding Activations . | . . . . . . Robots Disrupted 1 | . . 1 . . . Combat Hostiles 1 | . . 1 . . . Robots Corrupted 17 | . . 16 . . 1 Combat Hostiles 12 | . . 12 . . . Parts Fried 19 | . . 18 . . 1 Impact Corruptions 34 | . . 32 . . 2 Robots Melted . | . . . . . . Combat Hostiles . | . . . . . . Parts Melted 1 | . 1 . . . . Heat Transferred 925 | . 200 525 200 . . Parts Sabotaged . | . . . . . . Parts Stolen . | . . . . . . Parts Stripped . | . . . . . . Power Chain Reactions . | . . . . . . Alert | -11 -10 -9 -9 -9 -8 ------- Run | Yrd Mat Mat Min Exi Min Maximum Alert Level 1 | . . 1 1 . . Low Security (%) 76 | 100 100 69 77 . 100 Level 1 23 | . . 30 22 . . Level 2 . | . . . . . . Level 3 . | . . . . . . Level 4 . | . . . . . . Level 5 . | . . . . . . High Security . | . . . . . . Max Security . | . . . . . . Peak Influence 331 | 10 86 331 298 . 5 Initial 124 | . . . 124 . . Average 119 | 2 35 150 109 . . Influence Increases 1600 | 40 236 1142 176 . 6 Destroy 0b10 Robot/C 860 | . 120 680 60 . . Destroy 0b10 Robot/NC 160 | 40 25 90 . . 5 Destroy Leader 220 | . 30 180 10 . . Successful Hack 60 | . 19 41 . . . Disable Machine 120 | . 15 15 90 . . Destroy Structure 60 | . 27 16 16 . 1 Lose Combat Pursuer 120 | . . 120 . . . Influence Decreases 1600 | 40 236 823 495 . 6 Entered New Map 195 | . . . 195 . . Time Decay 1240 | 40 226 673 300 . 1 Lost Part 165 | . 10 150 . . 5 Squads Dispatched 9 | . 2 6 . . 1 Investigation 2 | . . 2 . . . Extermination . | . . . . . . Reinforcement 7 | . 2 4 . . 1 Assault . | . . . . . . Garrison . | . . . . . . Intercept . | . . . . . . Searches Triggered . | . . . . . . Construction Impeded 1 | . . . . . 1 Haulers Reinforced . | . . . . . . Active Scanning Responses . | . . . . . . Cargo Convoy Interrupts . | . . . . . . Stealth | -11 -10 -9 -9 -9 -8 --------- Run | Yrd Mat Mat Min Exi Min Distress Signals 3 | . . 3 . . . Communications Jammed . | . . . . . . Distress Signals . | . . . . . . Times Spotted 89 | . 21 61 7 . . Peak Tracking Total 7 | . 3 7 3 . . Tactical Retreats 4 | . . 4 . . . Traps | -11 -10 -9 -9 -9 -8 ------- Run | Yrd Mat Mat Min Exi Min Traps Triggered 1 | . . 1 . . . Indirectly . | . . . . . . Trap Hack Attempts . | . . . . . . Triggered . | . . . . . . Disarmed . | . . . . . . Reprogrammed . | . . . . . . Reused . | . . . . . . Traps Extracted . | . . . . . . Installed . | . . . . . . Triggered . | . . . . . . Machines | -11 -10 -9 -9 -9 -8 ---------- Run | Yrd Mat Mat Min Exi Min Machines Disabled 8 | . 1 1 6 . . Max in Single Turn 6 | . 1 1 6 . . Machines Repaired . | . . . . . . Machines Dismantled . | . . . . . . Machines Sabotaged . | . . . . . . Overloaded Fab Kills . | . . . . . . Hacking | -11 -10 -9 -9 -9 -8 --------- Run | Yrd Mat Mat Min Exi Min Machines Accessed 15 | . 2 9 . 4 . Terminals 7 | . 2 5 . . . Fabricators . | . . . . . . Repair Stations 1 | . . 1 . . . Recycling Units 1 | . . 1 . . . Scanalyzers 2 | . . 2 . . . Garrison Access . | . . . . . . Total Hacks 86 | . 5 32 . 49 . Successful 64 | . 2 13 . 49 . Failed 22 | . 3 19 . . . Catastrophic 1 | . . 1 . . . Database Lockouts . | . . . . . . Manual 12 | . 4 7 . 1 . Terminals 19 | . 5 14 . . . Fabricators . | . . . . . . Repair Stations 5 | . . 5 . . . Recycling Units 4 | . . 4 . . . Scanalyzers 9 | . . 9 . . . Garrison Access . | . . . . . . Terminal Hacks 54 | . 1 4 . 49 . Record 49 | . . . . 49 . Part Schematic 1 | . . 1 . . . Locate Traps 1 | . . 1 . . . Hauler Manifests 1 | . . 1 . . . Zone Layout 2 | . 1 1 . . . Fabricator Hacks . | . . . . . . Repair Station Hacks 4 | . . 4 . . . Scan Component 2 | . . 2 . . . Repair 2 | . . 2 . . . Recycling Unit Hacks 2 | . . 2 . . . Report Inventory 1 | . . 1 . . . Retrieve Components 1 | . . 1 . . . Scanalyzer 3 | . . 3 . . . Insert Component 2 | . . 2 . . . Analyze 1 | . . 1 . . . Garrison Access Hacks . | . . . . . . Unauthorized Hacks 1 | . 1 . . . . Terminals 1 | . 1 . . . . Botnet 1 | . 1 . . . . Fabricators . | . . . . . . Repair Stations . | . . . . . . Recycling Units . | . . . . . . Scanalyzers . | . . . . . . Garrison Access . | . . . . . . Data Cores Recovered 1 | . 1 . . . . Used . | . . . . . . Hacking Detections 10 | . 2 8 . . . Full Trace Events 2 | . . 2 . . . Feedback Events . | . . . . . . Feedback Blocked . | . . . . . . Robot Schematics Acquired . | . . . . . . Robots Built . | . . . . . . Authchips . | . . . . . . Time . | . . . . . . Total Robot Build Rating . | . . . . . . Part Schematics Acquired 2 | . . 2 . . . Parts Built . | . . . . . . Authchips . | . . . . . . Time . | . . . . . . Total Part Build Rating . | . . . . . . Part Studies Acquired . | . . . . . . Parts Repaired 2 | . . 2 . . . Time 58 | . . 58 . . . Parts Recycled . | . . . . . . Recycled Matter . | . . . . . . Retrieved Matter . | . . . . . . Retrieved Components 9 | . . 9 . . . Parts Scanalyzed 2 | . . 2 . . . Part Schematics Acquired 1 | . . 1 . . . Parts Damaged 1 | . . 1 . . . Bothacking | -11 -10 -9 -9 -9 -8 ------------ Run | Yrd Mat Mat Min Exi Min Used RIF Installer . | . . . . . . Robots Hacked 2 | . . 2 . . . Non-combat 2 | . . 2 . . . Combat . | . . . . . . Robot Hacks Applied 4 | . . 4 . . . parse_system 1 | . . 1 . . . no_distress 2 | . . 2 . . . check_alert 1 | . . 1 . . . Relay Couplers Released . | . . . . . . Fabnet Peak Effective % . | . . . . . . Robots Rewired . | . . . . . . Allies Hacked . | . . . . . . Hacks Repelled . | . . . . . . Allies | -11 -10 -9 -9 -9 -8 -------- Run | Yrd Mat Mat Min Exi Min Total Allies . | . . . . . . Largest Group . | . . . . . . Highest-Rated Group . | . . . . . . Highest-Rated Ally . | . . . . . . Total Orders . | . . . . . . Ally Attacks . | . . . . . . Total Damage . | . . . . . . Kills . | . . . . . . Allies Corrupted . | . . . . . . Allies Melted . | . . . . . . Intel | -11 -10 -9 -9 -9 -8 ------- Run | Yrd Mat Mat Min Exi Min Active Infowar (turns) 3062 | 132 572 1468 417 473 . Terrain 890 | . . . 417 473 . Structural 577 | . . 577 . . . Seismic 2165 | 132 572 1461 . . . Robot Analysis Total . | . . . . . . Derelict Logs Recovered . | . . . . . . Drone Launches . | . . . . . . Drone Recoveries . | . . . . . . Exploration | -11 -10 -9 -9 -9 -8 ------------- Run | Yrd Mat Mat Min Exi Min Turns Passed 6232 | 249 572 3315 862 1071 163 Spaces Moved 2490 | 137 286 1322 314 424 7 Core 10 | 10 . . . . . Treads 782 | 28 255 499 . . . Legs . | . . . . . . Wheels 1698 | 99 31 823 314 424 7 Hover . | . . . . . . Flight . | . . . . . . Fastest Speed 50 | 50 100 95 235 100 295 Average Speed 184 | 108 153 165 243 245 295 Slowest Speed 320 | 160 160 320 285 295 295 Overloaded Moves . | . . . . . . Propulsion Burnouts . | . . . . . . Robots Hopped . | . . . . . . Potential Cave-ins . | . . . . . . Cave-ins Triggered 1 | . . . . . 1 Exploration Rate (%) 42 | 4 49 77 51 70 2 Regions Visited 5 Branch Regions 3 Pre-discovered Areas 1 | . . . . 1 . Known Exits Taken . | . . . . . . Unknown Exits Taken 5 | 1 1 1 1 1 . Scrap Searched 2 | . . . 2 . . Spaces Dug 7 | . . 4 2 . 1 Terrain Destroyed 64 | . 29 15 19 . 1 Melee 7 | . . 4 2 . 1 Projectile . | . . . . . . AOE 57 | . 29 11 17 . . Terrain Rammed . | . . . . . . Walls Destroyed . | . . . . . . Machines Disabled . | . . . . . . Actions | -11 -10 -9 -9 -9 -8 --------- Run | Yrd Mat Mat Min Exi Min Total 3755 | 197 365 2200 386 460 147 Wait 796 | . 14 601 46 . 135 Move 2485 | 136 285 1321 313 423 7 Hop . | . . . . . . Pick Up 85 | 10 9 36 2 27 1 Fast Attach 21 | 5 . 14 . 2 . Attach 14 | 2 1 9 . . 2 Detach 7 | . . 4 . 3 . Swap 28 | . 4 19 5 . . Drop 30 | . 9 16 . 5 . Fire 175 | 44 43 76 12 . . Melee 114 | . . 104 8 . 2 Ram . | . . . . . . Kick . | . . . . . . Crush . | . . . . . . Escape Stasis . | . . . . . . Rewire . | . . . . . . Trap . | . . . . . . Miscellaneous . | . . . . . . Route ------- -11/Scrapyard -10/Materials (discovered 2 exits: *Mat x2) -9/Materials (discovered 3 exits: [*Mat x2] / [*Min]) -9/Mines (discovered 2 exits: [*Mat] / *Exi) -9/Exiles -8/Mines History --------- Turn | Location | Event 12 | -11/Scrapyard | Discovered new exit (range 15) 250 | -11/Scrapyard | Entered Materials 308 | -10/Materials | Build established: Mutant 566 | -10/Materials | Discovered new exit (range 15) 794 | -10/Materials | Discovered new exit (range 14) 822 | -10/Materials | Entered another Materials area 822 | -9/Materials | Evolved 2 slots: Utility x2 1981 | -9/Materials | Core integrity fell below 50% 2160 | -9/Materials | Discovered new exit (range 11) 2324 | -9/Materials | Lost 5 parts (1p1n2u1w) 2394 | -9/Materials | Discovered new exit (range 15) 2644 | -9/Materials | Build established: Scavenger-Mutant 2657 | -9/Materials | Core integrity fell below 20% 2842 | -9/Materials | Discovered new exit (range 3) 2887 | -9/Materials | Repaired Arm. Wheel 2915 | -9/Materials | Repaired Sml. Storage Unit 3439 | -9/Materials | Lost 3 parts (1p2u) 3926 | -9/Materials | Build established: Hauler-Mutant 4137 | -9/Materials | Entered Mines 4503 | -9/Mines | Assembled infested the area 4508 | -9/Mines | Assisted by a Guerilla fighting off Assembled 4874 | -9/Mines | Discovered new exit (range 7) 4890 | -9/Mines | Discovered new exit (range 11) 4985 | -9/Mines | Deemed a non-threat by the Exiles lab entrance 4999 | -9/Mines | Entered Exiles 5061 | -9/Exiles | Met 8R-AWN 5096 | -9/Exiles | Met EX-HEX 5199 | -9/Exiles | Met EX-BIN 5406 | -9/Exiles | Aligned with FarCom system 5409 | -9/Exiles | Given EX-Vault access code 5463 | -9/Exiles | Opened EX-Vault 5475 | -9/Exiles | Found Prototype Device 5475 | -9/Exiles | Identified Trap Reconfigurator 5526 | -9/Exiles | Warned to stay clear of 0b10 Research branches 5596 | -9/Exiles | Met EX-DEC 5683 | -9/Exiles | Learned location of Zion (-6) 6038 | -9/Exiles | Discovered new exit (range 12) 6070 | -9/Exiles | Left Exiles lab with Trap Reconfigurator 6070 | -9/Exiles | Entered Mines 6234 | -8/Mines | Crushed by falling debris 6234 | -8/Mines | Smashed by cave-in Last Messages --------------- 06171_ System corrupted: Energy discharge (-100). 06204_ System corrupted: FCS attempts to trigger EM Shotgun. 06204_ System corrupted: EM Shotgun misfires. 06232_ System corrupted: Heat flow error (+101). 06232_ Sneak attack on U-05 Engineer. 06232_ Destroyed Terrain Scanner. 06232_ Destroyed Wheel. 06232_ U-05 Engineer system corrupted by crushing effect. 06232_ U-05 Engineer knocked back. 06232_ ALERT: Construction progress impeded, dispatching reinforcements to local area. 06234_ The unstable cave ceiling collapses. 06234_ Crushed by falling debris. 06234_ Com. Wheel destroyed. 06234_ System corrupted by crushing effect (+3). 06234_ Heat Sink destroyed. 06234_ System corrupted by crushing effect (+4). Map ----- +----------------------------------------------------+ | | | | | | | | | | | | | | | | | | | | | | | | | | | | | | | | | | | | | | | | | | | ????????????????????????????????????????????? | | ????????????????????????????????????????????? | | ????????????????????????????????????????????? | | ????????????????????????###?????????????????? | | ????????????????????????#@###???????????????? | | ????????????????????????##! ####????????????? | | ????????????????????????# =!##???????????? | | ????????????????????????# / #???????????? | | ????????????????? ! #???????????? | | ????????????????####### ## ##???????????? | | ??????????????????????# ?#######????????????? | | ?????????????????????? ?????????????????????? | | ????????????????????? ?????????????????????? | | ????????????????????# ??????????????????????? | | ????????????????????#???????????????????????? | | ????????????????????????????????????????????? | | ????????????????????????????????????????????? | | ????????????????????????????????????????????? | | ????????????????????????????????????????????? | | ????????????????????????????????????????????? | | ????????????????????????????????????????????? | | ????????????????????????????????????????????? | | ?????????????????????????g??????????????????? | | ????????????????????????????????????????????? | | ????????????????????????????????????????????? | | ????????????????????????????????????????????? | | ????????????????????????????????????????????? | | ????????????????????????????????????????????? | | ????????????????????????????????????????????? | +----------------------------------------------------+ Best States ------------- Heat Dissipation 38 Energy Generation 14 Energy Capacity 265 Matter Stores 300 Matter Capacity 300 Sight Range 16 Terrain Scan Range 16 Terrain Scan Density 10 Armor Coverage 150 Propulsion Shielding 33 Evasion (%) 40 Recoil Reduction 2 Item Schematics ----------------- Hvy. Hammer | -9/Materials | Hacked Hacking Suite | -9/Materials | Scanalyzed Robot Schematics ------------------ None Fabricated ------------ Nothing Repaired ---------- Arm. Wheel | 13% | -9/Materials Sml. Storage Unit | 28% | -9/Materials Studied --------- None Alien Tech Used ----------------- None Achievements -------------- Ghost 'Em Junior Dev Challenges ------------ None Game ------ Seed NullInsulationSegregator Manual? 0 Play Time 00:52:17 Cumulative 31.4 hours Start 2026.04.03 @ 19:43:18 End 2026.04.04 @ 21:47:28 Sessions 2 Manual Loads 0 Difficulty Rogue Special Mode None Game No. 38 Rogue 38 Adventurer 0 Explorer 0 Win Type - Total 0 Types 0/0/0/0/0/0/0/0/0/0 Lore% 9 Gallery% 14 Achievement% 14 Wizard Run 0 Options --------- Layout 1 ASCII 0 Keyboard 1 Movement Arrows Keybinds 1 Fullscreen 1 Font 24/Smallcaps Map View 50x35 Zoom Use 0% Tactical HUD 1 Map Filters NONE Filters NONE Steam 1 RUN: 0d182e12-dbcc-468b-aa2c-01e5b3b0a408